[Event "Early-Titled-Tuesday-Blitz-January-30-2024"]
[Site "Chess.com"]
[Date "2024.01.30"]
[Round "3"]
[White "Practical-Play"]
[Black "Jojo_898"]
[Result "0-1"]
[WhiteElo "2592"]
[BlackElo "2450"]
[TimeControl "180+1"]
[EndTime "8:31:51 PST"]
[Termination "Jojo_898 won on time"]

1. e4 {[%clk 0:02:59.7]} 1... d6 {[%clk 0:02:59.6]} 2. d4 {[%clk 0:02:58.9]}
2... Nf6 {[%clk 0:02:59.8]} 3. Nc3 {[%clk 0:02:58.3]} 3... g6 {[%clk 0:03:00]}
4. f4 {[%clk 0:02:57.3]} 4... c6 {[%clk 0:02:59.7]} 5. Nf3 {[%clk 0:02:56.9]}
5... b5 {[%clk 0:02:59.3]} 6. e5 {[%clk 0:02:52]} 6... dxe5 {[%clk 0:02:56.7]}
7. fxe5 {[%clk 0:02:50.5]} 7... Nd5 {[%clk 0:02:56.1]} 8. Ne4 {[%clk 0:02:35.8]}
8... Bg7 {[%clk 0:02:55]} 9. c3 {[%clk 0:02:21.8]} 9... O-O {[%clk 0:02:54.4]}
10. Bd3 {[%clk 0:02:20.3]} 10... f6 {[%clk 0:02:52.6]} 11. Qe2 {[%clk
0:01:43.5]} 11... Be6 {[%clk 0:02:36.6]} 12. h4 {[%clk 0:01:33.5]} 12... Nd7
{[%clk 0:02:32.8]} 13. h5 {[%clk 0:01:31.4]} 13... Bf5 {[%clk 0:02:14.8]} 14.
Ng3 {[%clk 0:01:05]} 14... fxe5 {[%clk 0:01:38.7]} 15. hxg6 {[%clk 0:00:41.7]}
15... hxg6 {[%clk 0:01:36.3]} 16. Nxf5 {[%clk 0:00:40.2]} 16... gxf5 {[%clk
0:01:34]} 17. Nxe5 {[%clk 0:00:33.1]} 17... Nxe5 {[%clk 0:01:30.9]} 18. dxe5
{[%clk 0:00:32]} 18... Qc7 {[%clk 0:01:26.9]} 19. e6 {[%clk 0:00:12.8]} 19...
Qg3+ {[%clk 0:01:19.8]} 20. Kf1 {[%clk 0:00:12.7]} 20... Rf6 {[%clk 0:00:56.8]}
21. Rh3 {[%clk 0:00:12.1]} 21... Qg4 {[%clk 0:00:49.6]} 22. Rf3 {[%clk
0:00:06.2]} 22... Raf8 {[%clk 0:00:29]} 23. Bd2 {[%clk 0:00:06.6]} 23... f4
{[%clk 0:00:24.1]} 24. Kf2 {[%clk 0:00:06.5]} 24... Rxe6 {[%clk 0:00:22.7]} 25.
Qd1 {[%clk 0:00:04.1]} 25... Qh4+ {[%clk 0:00:20]} 26. Kg1 {[%clk 0:00:03.1]}
26... Rh6 {[%clk 0:00:20.1]} 27. Rh3 {[%clk 0:00:03]} 27... Qg5 {[%clk
0:00:18.4]} 28. Qf3 {[%clk 0:00:03.5]} 28... Rg6 {[%clk 0:00:10.2]} 29. Bxg6
{[%clk 0:00:03.3]} 29... Qxg6 {[%clk 0:00:11.1]} 30. Re1 {[%clk 0:00:03.5]}
30... e5 {[%clk 0:00:10.5]} 31. Qe4 {[%clk 0:00:02.7]} 31... Qxe4 {[%clk
0:00:07]} 32. Rxe4 {[%clk 0:00:03.6]} 32... Rf5 {[%clk 0:00:05.3]} 33. Be1
{[%clk 0:00:03.8]} 33... Nb6 {[%clk 0:00:05.1]} 34. Rd3 {[%clk 0:00:03.8]} 34...
Nc4 {[%clk 0:00:05.2]} 35. Rd8+ {[%clk 0:00:03.9]} 35... Kh7 {[%clk 0:00:04.5]}
36. b3 {[%clk 0:00:04.3]} 36... Ne3 {[%clk 0:00:03.9]} 37. Bf2 {[%clk 0:00:04]}
37... Ng4 {[%clk 0:00:03.7]} 38. Rd7 {[%clk 0:00:03.3]} 38... Nf6 {[%clk
0:00:04]} 39. Rxa7 {[%clk 0:00:02.5]} 39... Nxe4 {[%clk 0:00:04.3]} 40. Bb6
{[%clk 0:00:03.4]} 40... Nxc3 {[%clk 0:00:04]} 41. a4 {[%clk 0:00:03.5]} 41...
e4 {[%clk 0:00:04.2]} 42. a5 {[%clk 0:00:03.5]} 42... e3 {[%clk 0:00:03.7]} 43.
Bd4 {[%clk 0:00:03.6]} 43... Rg5 {[%clk 0:00:02.4]} 44. Kf1 {[%clk 0:00:03.1]}
44... Kh6 {[%clk 0:00:02.2]} 45. Bxg7+ {[%clk 0:00:02.8]} 45... Rxg7 {[%clk
0:00:02.7]} 46. Rxg7 {[%clk 0:00:03.1]} 46... Kxg7 {[%clk 0:00:03.6]} 47. a6
{[%clk 0:00:04]} 47... Nd5 {[%clk 0:00:03.8]} 48. a7 {[%clk 0:00:04.2]} 48...
Nb6 {[%clk 0:00:04.4]} 49. Ke2 {[%clk 0:00:04.5]} 49... Kf6 {[%clk 0:00:05]} 50.
g3 {[%clk 0:00:05.4]} 50... Kf5 {[%clk 0:00:04.1]} 51. gxf4 {[%clk 0:00:04.7]}
51... Kxf4 {[%clk 0:00:05]} 52. Ke1 {[%clk 0:00:04.1]} 52... Kf3 {[%clk
0:00:05.4]} 53. Kf1 {[%clk 0:00:05]} 53... Na8 {[%clk 0:00:05.2]} 54. Ke1 {[%clk
0:00:05]} 54... b4 {[%clk 0:00:05.6]} 55. Kf1 {[%clk 0:00:04.5]} 55... c5 {[%clk
0:00:06.2]} 56. Ke1 {[%clk 0:00:04.9]} 56... e2 {[%clk 0:00:06.7]} 57. Kd2
{[%clk 0:00:03.7]} 57... Kf2 {[%clk 0:00:07.6]} 58. Kd3 {[%clk 0:00:03.5]} 58...
e1=Q {[%clk 0:00:07.9]} 59. Kc4 {[%clk 0:00:04.4]} 59... Qc3+ {[%clk 0:00:08]}
60. Kb5 {[%clk 0:00:04.5]} 60... Qxb3 {[%clk 0:00:08.5]} 61. Kc6 {[%clk
0:00:03.8]} 61... Qa3 {[%clk 0:00:09.1]} 62. Kb7 {[%clk 0:00:03.8]} 62... Qxa7+
{[%clk 0:00:09]} 0-1

[Event "Early-Titled-Tuesday-Blitz-January-30-2024"]
[Site "Chess.com"]
[Date "2024.01.30"]
[Round "3"]
[White "FLYD"]
[Black "Rosh1610"]
[Result "1/2-1/2"]
[WhiteElo "2042"]
[BlackElo "2360"]
[TimeControl "180+1"]
[EndTime "8:31:52 PST"]
[Termination "Game drawn - timeout vs insufficient material"]

1. e4 {[%clk 0:03:00.9]} 1... e5 {[%clk 0:02:54.2]} 2. Nf3 {[%clk 0:03:00.7]}
2... Nc6 {[%clk 0:02:51.7]} 3. Bc4 {[%clk 0:03:00.5]} 3... Nf6 {[%clk
0:02:51.5]} 4. d4 {[%clk 0:02:56.2]} 4... exd4 {[%clk 0:02:50.5]} 5. O-O {[%clk
0:02:56.4]} 5... d6 {[%clk 0:02:42.4]} 6. Nxd4 {[%clk 0:02:45.4]} 6... Nxd4
{[%clk 0:02:41]} 7. Qxd4 {[%clk 0:02:46.3]} 7... Be7 {[%clk 0:02:38.1]} 8. Nc3
{[%clk 0:02:45.4]} 8... O-O {[%clk 0:02:36.1]} 9. f4 {[%clk 0:02:42.6]} 9... b6
{[%clk 0:02:27.3]} 10. Kh1 {[%clk 0:02:41.1]} 10... Bb7 {[%clk 0:02:24.7]} 11.
Bd2 {[%clk 0:02:29.5]} 11... Nd7 {[%clk 0:02:19.8]} 12. Rf3 {[%clk 0:02:26.4]}
12... Bf6 {[%clk 0:02:17.7]} 13. Qf2 {[%clk 0:02:24.8]} 13... Re8 {[%clk
0:02:02.9]} 14. Re1 {[%clk 0:02:20.6]} 14... Nc5 {[%clk 0:01:55.2]} 15. Bd5
{[%clk 0:02:08.4]} 15... c6 {[%clk 0:01:38.5]} 16. Bb3 {[%clk 0:01:59.3]} 16...
Bxc3 {[%clk 0:01:38.3]} 17. Bxc3 {[%clk 0:01:53.2]} 17... Nxe4 {[%clk
0:01:38.2]} 18. Rxe4 {[%clk 0:01:50.6]} 18... Rxe4 {[%clk 0:01:37.7]} 19. Rg3
{[%clk 0:01:36.2]} 19... g6 {[%clk 0:01:34.5]} 20. f5 {[%clk 0:01:36.4]} 20...
d5 {[%clk 0:01:31.7]} 21. fxg6 {[%clk 0:01:32.7]} 21... hxg6 {[%clk 0:01:32.6]}
22. Rh3 {[%clk 0:01:11.9]} 22... f6 {[%clk 0:01:32.2]} 23. Rf3 {[%clk
0:00:57.5]} 23... f5 {[%clk 0:01:11.9]} 24. Rh3 {[%clk 0:00:32.1]} 24... Qg5
{[%clk 0:01:05.8]} 25. Rh8+ {[%clk 0:00:19.1]} 25... Kf7 {[%clk 0:01:05.6]} 26.
Rh7+ {[%clk 0:00:19.8]} 26... Ke6 {[%clk 0:01:03.8]} 27. Rxb7 {[%clk 0:00:19.8]}
27... Re8 {[%clk 0:00:51.3]} 28. h3 {[%clk 0:00:17.8]} 28... Qc1+ {[%clk
0:00:47.8]} 29. Kh2 {[%clk 0:00:17.9]} 29... Qf4+ {[%clk 0:00:45.8]} 30. Qxf4
{[%clk 0:00:17.4]} 30... Rxf4 {[%clk 0:00:45.8]} 31. Rxa7 {[%clk 0:00:13.7]}
31... Kd6 {[%clk 0:00:41.8]} 32. Rg7 {[%clk 0:00:14]} 32... Re6 {[%clk 0:00:41]}
33. Kg3 {[%clk 0:00:11.5]} 33... Rfe4 {[%clk 0:00:37.7]} 34. h4 {[%clk
0:00:10.2]} 34... Re3+ {[%clk 0:00:36.7]} 35. Kh2 {[%clk 0:00:10.7]} 35... Kc5
{[%clk 0:00:35.6]} 36. a3 {[%clk 0:00:10]} 36... Re2 {[%clk 0:00:33]} 37. Ba4
{[%clk 0:00:08.8]} 37... b5 {[%clk 0:00:31.2]} 38. Bb4+ {[%clk 0:00:08.7]} 38...
Kb6 {[%clk 0:00:31]} 39. Bb3 {[%clk 0:00:08.9]} 39... Rf2 {[%clk 0:00:29]} 40.
Kg3 {[%clk 0:00:06.8]} 40... Ree2 {[%clk 0:00:28.5]} 41. h5 {[%clk 0:00:04.6]}
41... gxh5 {[%clk 0:00:24.1]} 42. Kh4 {[%clk 0:00:03.9]} 42... Rxg2 {[%clk
0:00:22.6]} 43. Rxg2 {[%clk 0:00:04.8]} 43... Rxg2 {[%clk 0:00:22.8]} 44. Kxh5
{[%clk 0:00:05.7]} 44... f4 {[%clk 0:00:22.4]} 45. Kh4 {[%clk 0:00:05.5]} 45...
f3 {[%clk 0:00:21.8]} 46. Kh3 {[%clk 0:00:05.9]} 46... Rg1 {[%clk 0:00:18.5]}
47. Bc3 {[%clk 0:00:05.9]} 47... c5 {[%clk 0:00:16.7]} 48. Bxd5 {[%clk
0:00:04.5]} 48... f2 {[%clk 0:00:16.7]} 49. Bg2 {[%clk 0:00:05.4]} 49... f1=Q
{[%clk 0:00:16]} 50. Bxf1 {[%clk 0:00:06.3]} 50... Rxf1 {[%clk 0:00:16.2]} 51.
Kg2 {[%clk 0:00:07.2]} 51... Rc1 {[%clk 0:00:15.4]} 52. Kf3 {[%clk 0:00:08.1]}
52... Rxc2 {[%clk 0:00:14.5]} 53. Ke3 {[%clk 0:00:09]} 53... c4 {[%clk
0:00:06.8]} 54. Kd4 {[%clk 0:00:08.4]} 54... Kc6 {[%clk 0:00:06.1]} 55. a4
{[%clk 0:00:08.2]} 55... Kb6 {[%clk 0:00:04.3]} 56. a5+ {[%clk 0:00:08.3]} 56...
Ka6 {[%clk 0:00:04.2]} 57. Kc5 {[%clk 0:00:08.1]} 57... Rxc3 {[%clk 0:00:03.3]}
58. bxc3 {[%clk 0:00:09]} 58... Kxa5 {[%clk 0:00:03.5]} 59. Kc6 {[%clk
0:00:09.6]} 59... Ka4 {[%clk 0:00:03.9]} 60. Kc5 {[%clk 0:00:10.3]} 60... Kb3
{[%clk 0:00:03.7]} 61. Kxb5 {[%clk 0:00:10.7]} 61... Kxc3 {[%clk 0:00:02.2]} 62.
Ka4 {[%clk 0:00:11.6]} 1/2-1/2

[Event "Early-Titled-Tuesday-Blitz-January-30-2024"]
[Site "Chess.com"]
[Date "2024.01.30"]
[Round "3"]
[White "FM_VS99"]
[Black "Baku_Boulevard"]
[Result "0-1"]
[WhiteElo "2549"]
[BlackElo "3052"]
[TimeControl "180+1"]
[EndTime "8:31:53 PST"]
[Termination "Baku_Boulevard won by resignation"]

1. d4 {[%clk 0:03:00.9]} 1... Nf6 {[%clk 0:02:59.5]} 2. Nf3 {[%clk 0:03:01.1]}
2... g6 {[%clk 0:02:59]} 3. g3 {[%clk 0:03:01.3]} 3... Bg7 {[%clk 0:02:58.7]} 4.
c4 {[%clk 0:03:01]} 4... d6 {[%clk 0:02:59.6]} 5. Bg2 {[%clk 0:03:01.3]} 5...
Nbd7 {[%clk 0:02:59.4]} 6. O-O {[%clk 0:03:01.6]} 6... e5 {[%clk 0:03:00]} 7.
Nc3 {[%clk 0:03:02.2]} 7... exd4 {[%clk 0:03:00.9]} 8. Nxd4 {[%clk 0:03:01.9]}
8... O-O {[%clk 0:03:01.6]} 9. e4 {[%clk 0:03:02.1]} 9... Re8 {[%clk 0:03:01.8]}
10. h3 {[%clk 0:03:02.4]} 10... a6 {[%clk 0:03:02.4]} 11. Be3 {[%clk 0:03:02.1]}
11... Rb8 {[%clk 0:03:02.8]} 12. b3 {[%clk 0:02:59.1]} 12... Ne5 {[%clk
0:03:02.3]} 13. f4 {[%clk 0:02:40.2]} 13... Ned7 {[%clk 0:03:01.4]} 14. Qc2
{[%clk 0:02:33.7]} 14... c5 {[%clk 0:03:00.5]} 15. Nde2 {[%clk 0:02:13.5]} 15...
b5 {[%clk 0:02:59.8]} 16. Rad1 {[%clk 0:02:08.6]} 16... b4 {[%clk 0:02:58.2]}
17. Nd5 {[%clk 0:01:53.7]} 17... Nxd5 {[%clk 0:02:57.3]} 18. Rxd5 {[%clk
0:01:46.3]} 18... Nf6 {[%clk 0:02:57.1]} 19. Rdd1 {[%clk 0:01:44.4]} 19... Qe7
{[%clk 0:02:56.9]} 20. e5 {[%clk 0:01:40.6]} 20... dxe5 {[%clk 0:02:56.6]} 21.
fxe5 {[%clk 0:01:38.6]} 21... Nd7 {[%clk 0:02:51.5]} 22. Nf4 {[%clk 0:01:34.4]}
22... Nb6 {[%clk 0:02:50.2]} 23. Qf2 {[%clk 0:01:29.6]} 23... Qxe5 {[%clk
0:02:43.2]} 24. Nxg6 {[%clk 0:01:16.5]} 24... hxg6 {[%clk 0:02:01.1]} 25. Qxf7+
{[%clk 0:01:15.3]} 25... Kh7 {[%clk 0:02:01.3]} 26. Bf4 {[%clk 0:01:13.7]} 26...
Be6 {[%clk 0:01:44.2]} 27. Bxe5 {[%clk 0:01:00.6]} 27... Bxf7 {[%clk 0:01:44.5]}
28. Bxb8 {[%clk 0:01:00.3]} 28... Bxc4 {[%clk 0:01:45.1]} 29. Bc7 {[%clk
0:00:41.8]} 29... Bxf1 {[%clk 0:01:44.2]} 30. Bxf1 {[%clk 0:00:37.9]} 30... Na8
{[%clk 0:01:40.7]} 31. Rd7 {[%clk 0:00:30.6]} 31... Nxc7 {[%clk 0:01:39.9]} 32.
Rxc7 {[%clk 0:00:31.5]} 32... Kh6 {[%clk 0:01:35.6]} 33. Bxa6 {[%clk 0:00:26.3]}
33... Re3 {[%clk 0:01:35.5]} 34. Kg2 {[%clk 0:00:25.1]} 34... Rc3 {[%clk
0:01:33.1]} 35. Bc4 {[%clk 0:00:18.3]} 35... Bd4 {[%clk 0:01:32.2]} 36. Re7
{[%clk 0:00:07.7]} 36... Kg5 {[%clk 0:01:26.3]} 37. h4+ {[%clk 0:00:08]} 37...
Kf6 {[%clk 0:01:26.8]} 38. Re6+ {[%clk 0:00:07.9]} 38... Kf5 {[%clk 0:01:26.8]}
39. Re2 {[%clk 0:00:08.6]} 39... Be5 {[%clk 0:01:27.2]} 40. Rf2+ {[%clk
0:00:07.4]} 40... Ke4 {[%clk 0:01:27.2]} 41. Re2+ {[%clk 0:00:07.9]} 41... Kd4
{[%clk 0:01:27.8]} 42. Rd2+ {[%clk 0:00:08.1]} 42... Ke4 {[%clk 0:01:28.4]} 43.
Bd5+ {[%clk 0:00:05.6]} 43... Ke3 {[%clk 0:01:27]} 44. Rf2 {[%clk 0:00:05.3]}
44... Kd4 {[%clk 0:01:25.3]} 45. Rd2+ {[%clk 0:00:04.6]} 45... Ke3 {[%clk
0:01:25.5]} 46. Rf2 {[%clk 0:00:04.9]} 46... Rc1 {[%clk 0:01:25.8]} 47. Bc4
{[%clk 0:00:04.7]} 47... Bb8 {[%clk 0:01:18.9]} 48. Re2+ {[%clk 0:00:04.6]}
48... Kd4 {[%clk 0:01:19.4]} 49. Rd2+ {[%clk 0:00:05.2]} 49... Kc3 {[%clk
0:01:19.9]} 50. Re2 {[%clk 0:00:04.7]} 50... Ra1 {[%clk 0:01:18.3]} 51. g4
{[%clk 0:00:04.6]} 51... Rd1 {[%clk 0:01:11.9]} 52. h5 {[%clk 0:00:05.1]} 52...
gxh5 {[%clk 0:01:12.3]} 53. gxh5 {[%clk 0:00:06]} 53... Rd6 {[%clk 0:01:12.9]}
54. Re6 {[%clk 0:00:06]} 54... Rd2+ {[%clk 0:01:09.5]} 55. Kf3 {[%clk
0:00:06.3]} 55... Rxa2 {[%clk 0:01:09.1]} 56. h6 {[%clk 0:00:06.3]} 56... Rh2
{[%clk 0:01:09.8]} 57. Rb6 {[%clk 0:00:06.3]} 57... Be5 {[%clk 0:01:09.3]} 58.
Rc6 {[%clk 0:00:06.2]} 58... Bd4 {[%clk 0:01:09.9]} 59. Kg3 {[%clk 0:00:06.2]}
59... Rh1 {[%clk 0:01:07]} 60. Kg2 {[%clk 0:00:06.5]} 60... Rh5 {[%clk
0:01:06.6]} 61. Bf7 {[%clk 0:00:05.1]} 61... Rf5 {[%clk 0:01:06.5]} 62. Bg6
{[%clk 0:00:01.7]} 62... Rg5+ {[%clk 0:01:05.7]} 63. Kf3 {[%clk 0:00:01.8]}
63... Kxb3 {[%clk 0:01:06.2]} 64. Kf4 {[%clk 0:00:02.4]} 64... Rg1 {[%clk
0:01:03.1]} 65. h7 {[%clk 0:00:03]} 65... Rh1 {[%clk 0:01:03.4]} 66. Kg4 {[%clk
0:00:03.1]} 66... Kb2 {[%clk 0:00:57.6]} 67. Bh5 {[%clk 0:00:03.4]} 67... Rg1+
{[%clk 0:00:56.4]} 68. Kf5 {[%clk 0:00:02.7]} 68... Rf1+ {[%clk 0:00:56.9]} 69.
Ke4 {[%clk 0:00:02.5]} 69... Rf8 {[%clk 0:00:56.6]} 70. Rc7 {[%clk 0:00:02.1]}
70... b3 {[%clk 0:00:56.2]} 71. Bf7 {[%clk 0:00:02.7]} 71... Kc3 {[%clk
0:00:56.3]} 72. Rb7 {[%clk 0:00:03.2]} 72... b2 {[%clk 0:00:55.2]} 73. Rb3+
{[%clk 0:00:03.8]} 73... Kc2 {[%clk 0:00:55.7]} 74. Bg8 {[%clk 0:00:03.8]} 74...
b1=Q {[%clk 0:00:54.3]} 75. Rxb1 {[%clk 0:00:03.9]} 75... Kxb1 {[%clk
0:00:55.2]} 76. Kd3 {[%clk 0:00:04.4]} 76... Kb2 {[%clk 0:00:53.9]} 77. Kc4
{[%clk 0:00:05.3]} 77... Ka3 {[%clk 0:00:54.1]} 0-1

[Event "Early-Titled-Tuesday-Blitz-January-30-2024"]
[Site "Chess.com"]
[Date "2024.01.30"]
[Round "3"]
[White "Amirreza_p"]
[Black "FlemingA"]
[Result "1-0"]
[WhiteElo "2754"]
[BlackElo "2434"]
[TimeControl "180+1"]
[EndTime "8:31:56 PST"]
[Termination "Amirreza_p won by checkmate"]

1. e4 {[%clk 0:03:00.9]} 1... Nc6 {[%clk 0:02:53.5]} 2. Nf3 {[%clk 0:03:00.7]}
2... d6 {[%clk 0:02:52]} 3. d4 {[%clk 0:03:00.6]} 3... Nf6 {[%clk 0:02:52.3]} 4.
d5 {[%clk 0:03:00.6]} 4... Nb8 {[%clk 0:02:50.8]} 5. Nc3 {[%clk 0:03:00.2]} 5...
g6 {[%clk 0:02:50.8]} 6. Bc4 {[%clk 0:02:59.9]} 6... Bg7 {[%clk 0:02:51.3]} 7.
O-O {[%clk 0:02:59.4]} 7... O-O {[%clk 0:02:51.9]} 8. h3 {[%clk 0:03:00]} 8...
c6 {[%clk 0:02:52.4]} 9. Re1 {[%clk 0:02:59.4]} 9... Nbd7 {[%clk 0:02:45.6]} 10.
a4 {[%clk 0:02:57.5]} 10... Qc7 {[%clk 0:02:26.9]} 11. Bf1 {[%clk 0:02:53.7]}
11... Re8 {[%clk 0:01:58.8]} 12. a5 {[%clk 0:02:40]} 12... e5 {[%clk 0:01:57.2]}
13. a6 {[%clk 0:02:31.5]} 13... cxd5 {[%clk 0:01:41.4]} 14. exd5 {[%clk
0:02:21.9]} 14... bxa6 {[%clk 0:01:29.8]} 15. Bxa6 {[%clk 0:02:19.6]} 15... Nc5
{[%clk 0:01:19.4]} 16. Bxc8 {[%clk 0:02:15]} 16... Rexc8 {[%clk 0:01:15.8]} 17.
Bd2 {[%clk 0:01:44.9]} 17... Qb7 {[%clk 0:01:14.9]} 18. b3 {[%clk 0:01:16.3]}
18... Nxd5 {[%clk 0:01:08]} 19. Nxd5 {[%clk 0:01:16.8]} 19... Qxd5 {[%clk
0:01:08.9]} 20. Ra5 {[%clk 0:01:07.3]} 20... Qc6 {[%clk 0:00:46.5]} 21. Be3
{[%clk 0:01:01]} 21... Rc7 {[%clk 0:00:15.6]} 22. Nd2 {[%clk 0:00:51.1]} 22...
Ne6 {[%clk 0:00:10.5]} 23. Nc4 {[%clk 0:00:43.9]} 23... d5 {[%clk 0:00:09.9]}
24. Qxd5 {[%clk 0:00:42.1]} 24... Nd4 {[%clk 0:00:06.8]} 25. Bxd4 {[%clk
0:00:27.2]} 25... exd4 {[%clk 0:00:07.4]} 26. Qxc6 {[%clk 0:00:16.5]} 26... Rxc6
{[%clk 0:00:08.3]} 27. Re7 {[%clk 0:00:16]} 27... a6 {[%clk 0:00:08.5]} 28. Kf1
{[%clk 0:00:16.1]} 28... h6 {[%clk 0:00:08.5]} 29. Ke2 {[%clk 0:00:15.6]} 29...
Rb8 {[%clk 0:00:09]} 30. Kd3 {[%clk 0:00:14.3]} 30... Rf6 {[%clk 0:00:09.5]} 31.
f3 {[%clk 0:00:13.9]} 31... Rf5 {[%clk 0:00:09.7]} 32. Rxf5 {[%clk 0:00:13.7]}
32... gxf5 {[%clk 0:00:10.6]} 33. Nd6 {[%clk 0:00:06.6]} 33... Rb6 {[%clk
0:00:05.1]} 34. Re8+ {[%clk 0:00:06.5]} 34... Kh7 {[%clk 0:00:04.5]} 35. Nxf5
{[%clk 0:00:06.9]} 35... Bf6 {[%clk 0:00:02.5]} 36. Nxd4 {[%clk 0:00:06.8]}
36... Rd6 {[%clk 0:00:02.9]} 37. Re4 {[%clk 0:00:07.3]} 37... Kg6 {[%clk
0:00:03.2]} 38. c4 {[%clk 0:00:07.7]} 38... Rd8 {[%clk 0:00:03.6]} 39. g4 {[%clk
0:00:08.1]} 39... a5 {[%clk 0:00:04.5]} 40. c5 {[%clk 0:00:08.2]} 40... Bg7
{[%clk 0:00:05.4]} 41. Kc4 {[%clk 0:00:07.9]} 41... Rb8 {[%clk 0:00:06.3]} 42.
Nb5 {[%clk 0:00:07.8]} 42... Rc8 {[%clk 0:00:05.9]} 43. f4 {[%clk 0:00:07.1]}
43... Bf8 {[%clk 0:00:06]} 44. f5+ {[%clk 0:00:07.2]} 44... Kg5 {[%clk
0:00:06.5]} 45. Re5 {[%clk 0:00:06.6]} 45... f6 {[%clk 0:00:06.9]} 46. Rd5
{[%clk 0:00:07.1]} 46... Kh4 {[%clk 0:00:07.4]} 47. Nd4 {[%clk 0:00:07.2]} 47...
Kxh3 {[%clk 0:00:07.1]} 48. c6 {[%clk 0:00:06.6]} 48... Kxg4 {[%clk 0:00:06.9]}
49. Rxa5 {[%clk 0:00:07.2]} 49... h5 {[%clk 0:00:05.9]} 50. b4 {[%clk
0:00:07.7]} 50... h4 {[%clk 0:00:06.1]} 51. b5 {[%clk 0:00:08.3]} 51... h3
{[%clk 0:00:06.6]} 52. b6 {[%clk 0:00:08]} 52... h2 {[%clk 0:00:03.8]} 53. Ra1
{[%clk 0:00:06.6]} 53... Bd6 {[%clk 0:00:01.8]} 54. Kd5 {[%clk 0:00:04.9]} 54...
Bf4 {[%clk 0:00:01.3]} 55. b7 {[%clk 0:00:04.6]} 55... Rh8 {[%clk 0:00:02.2]}
56. Ne6 {[%clk 0:00:04.8]} 56... Bb8 {[%clk 0:00:02.5]} 57. Rh1 {[%clk 0:00:04]}
57... Bc7 {[%clk 0:00:03.4]} 58. Nxc7 {[%clk 0:00:04.2]} 58... Kg3 {[%clk
0:00:04.3]} 59. Rxh2 {[%clk 0:00:04.3]} 59... Kxh2 {[%clk 0:00:04.7]} 60. Ne6
{[%clk 0:00:05]} 60... Rh3 {[%clk 0:00:05.1]} 61. c7 {[%clk 0:00:05.6]} 61...
Rh4 {[%clk 0:00:05.7]} 62. Kc6 {[%clk 0:00:06.2]} 62... Rh3 {[%clk 0:00:06.6]}
63. Kd7 {[%clk 0:00:06.9]} 63... Rc3 {[%clk 0:00:07.5]} 64. c8=Q {[%clk
0:00:07.7]} 64... Rd3+ {[%clk 0:00:08]} 65. Ke7 {[%clk 0:00:08.1]} 65... Re3
{[%clk 0:00:08.4]} 66. Qc7+ {[%clk 0:00:08.9]} 66... Kh3 {[%clk 0:00:07.5]} 67.
b8=Q {[%clk 0:00:09.8]} 67... Kg4 {[%clk 0:00:07.3]} 68. Qf4+ {[%clk 0:00:08.3]}
68... Kh5 {[%clk 0:00:07.7]} 69. Qh8# {[%clk 0:00:08.4]} 1-0